OrganisationNameLabel,OrganisationURI,EffectiveDate,Directorate/ServiceWhereExpenditureIncurred,ServiceCategoryLabel,ServiceCategoryURI,Supplier,SupplierRegisteredCompany Number,PaymentDate,TransactionNumber,NetAmount,IrrecoverableVAT,PurposeOfSpend,ProcurementClassification:ProclassLabel,ProcrementClassification:ProClassCode
South Lakeland District Council,http://opendatacommunities.org/id/district-council/south-lakeland,31/05/2020,Social Enterprise Admin,Cultural Environmental Regulatory & Planning Services,http://opendatacommunities.org/def/concept/finance/sercop/objective/104,NEWSQUEST MEDIA GROUP LTD,3102566,11/05/2020,104713,264,0,PUBLIC NOTICES FOR PLANNING 1 APRIL - 31,191000,Facilities Advertising
South Lakeland District Council,http://opendatacommunities.org/id/district-council/south-lakeland,31/05/2020,Business Support Community Services,Cultural Environmental Regulatory & Planning Services,http://opendatacommunities.org/def/concept/finance/sercop/objective/104,Slicker Recycling Ltd,8652156,13/05/2020,105892,267,0,Oil collection,182015,Environment Waste Mgt Waste Disposal
South Lakeland District Council,http://opendatacommunities.org/id/district-council/south-lakeland,31/05/2020,Business Support Community Services,Cultural Environmental Regulatory & Planning Services,http://opendatacommunities.org/def/concept/finance/sercop/objective/104,LANCASHIRE DAF,,27/05/2020,107080,270,0,Parts,381400,Vehicle Mgt Maintenance
South Lakeland District Council,http://opendatacommunities.org/id/district-council/south-lakeland,31/05/2020,Business Support Community Services,Cultural Environmental Regulatory & Planning Services,http://opendatacommunities.org/def/concept/finance/sercop/objective/104,DENNIS EAGLE LTD,3794455,08/06/2020,106383,270.82,0,Parts,381300,Vehicle Mgt Industrial
South Lakeland District Council,http://opendatacommunities.org/id/district-council/south-lakeland,31/05/2020,Business Support Community Services,Cultural Environmental Regulatory & Planning Services,http://opendatacommunities.org/def/concept/finance/sercop/objective/104,CUMBRIA TRUCK CENTRE LTD,4298488,27/05/2020,107079,276.23,0,Repairs,381300,Vehicle Mgt Industrial
South Lakeland District Council,http://opendatacommunities.org/id/district-council/south-lakeland,31/05/2020,Business Support Community Services,Cultural Environmental Regulatory & Planning Services,http://opendatacommunities.org/def/concept/finance/sercop/objective/104,GARWOOD EUROPE LTD,4333504,27/05/2020,107078,289.41,0,Parts,182011,Environment Waste Management Consumables
South Lakeland District Council,http://opendatacommunities.org/id/district-council/south-lakeland,31/05/2020,Business Support Community Services,Cultural Environmental Regulatory & Planning Services,http://opendatacommunities.org/def/concept/finance/sercop/objective/104,ARCO LIMITED,133804,06/05/2020,105945,290.19,0,Cleaning materials,141100,Clothing Protective
South Lakeland District Council,http://opendatacommunities.org/id/district-council/south-lakeland,31/05/2020,Business Support Community Services,Cultural Environmental Regulatory & Planning Services,http://opendatacommunities.org/def/concept/finance/sercop/objective/104,TECHNIJET LTD,2776601,13/05/2020,106382,299.95,0,Service & repair pressure washers,139999,Cleaning & Janitorial Not Elsewhere Clas
South Lakeland District Council,http://opendatacommunities.org/id/district-council/south-lakeland,31/05/2020,Support Services,Non-Service Payments,,COMPUTERSHARE VOUCHER SERVICES LTD,4968447,06/05/2020,106005,303,0,Child Care Vouchers 20/21,202100,Financial Services Subscriptions
South Lakeland District Council,http://opendatacommunities.org/id/district-council/south-lakeland,31/05/2020,Business Support Community Services,Cultural Environmental Regulatory & Planning Services,http://opendatacommunities.org/def/concept/finance/sercop/objective/104,ELIS UK LTD,228604,06/05/2020,105932,306.96,0,Workwear hire 01/04/20 - 31/03/21,161000,Domestic Goods Commercial
South Lakeland District Council,http://opendatacommunities.org/id/district-council/south-lakeland,31/05/2020,Case Management Account Mgmt,Central Services,http://opendatacommunities.org/def/concept/finance/sercop/objective/102,ROSEFOX PAPER LIMITED,1655083,06/05/2020,104684,317.7,0,SRA3 Lumisilk 100gsm,341000,Stationery Paper
South Lakeland District Council,http://opendatacommunities.org/id/district-council/south-lakeland,31/05/2020,Democratic and Member Services,Central Services,http://opendatacommunities.org/def/concept/finance/sercop/objective/102,Browne Jacobson LLP,OC306448,06/05/2020,105155,322,0,Solicitor fees-Coastal Communities Fund,281200,Legal Services General Support
South Lakeland District Council,http://opendatacommunities.org/id/district-council/south-lakeland,31/05/2020,Business Support Community Services,Cultural Environmental Regulatory & Planning Services,http://opendatacommunities.org/def/concept/finance/sercop/objective/104,LANCASHIRE DAF,,13/05/2020,106458,325,0,Parts,381400,Vehicle Mgt Maintenance
South Lakeland District Council,http://opendatacommunities.org/id/district-council/south-lakeland,31/05/2020,Support Services,Non-Service Payments,,Bravo Benefits Ltd,6758298,06/05/2020,106006,330,0,Chidl Care Vouchers 20/21,202100,Financial Services Subscriptions
South Lakeland District Council,http://opendatacommunities.org/id/district-council/south-lakeland,31/05/2020,Business Support Community Services,Environment Regulatory,,CUMBRIA COUNTY COUNCIL,,27/05/2020,107249,330.1,0,Repair street light 224 at Radical,908000,Public Bodies Council support services
South Lakeland District Council,http://opendatacommunities.org/id/district-council/south-lakeland,31/05/2020,Support Services,Housing Services,http://opendatacommunities.org/def/concept/finance/sercop/objective/108,SC Signs T/A Signs Express Lancaster,,27/05/2020,107104,331.5,0,Social Distancing Signs for Town View,102400,Building Signage
South Lakeland District Council,http://opendatacommunities.org/id/district-council/south-lakeland,31/05/2020,Business Support Community Services,Cultural Environmental Regulatory & Planning Services,http://opendatacommunities.org/def/concept/finance/sercop/objective/104,DRIVELINE & HYDRAULIC ENGINEERING LTD,5527968,27/05/2020,107047,336.82,0,Repairs,391200,Construction Engineering
South Lakeland District Council,http://opendatacommunities.org/id/district-council/south-lakeland,31/05/2020,Business Support Community Services,Cultural Environmental Regulatory & Planning Services,http://opendatacommunities.org/def/concept/finance/sercop/objective/104,TECHNIJET LTD,2776601,27/05/2020,107257,336.94,0,Service & repair pressure washers,139999,Cleaning & Janitorial Not Elsewhere Clas
South Lakeland District Council,http://opendatacommunities.org/id/district-council/south-lakeland,31/05/2020,Case Management People,Housing Services,http://opendatacommunities.org/def/concept/finance/sercop/objective/108,Windermere Park,,06/05/2020,105136,350,0,Accommodation 20/04/2020 - 26/04/2020,250000,Housing
South Lakeland District Council,http://opendatacommunities.org/id/district-council/south-lakeland,31/05/2020,Case Management People,Housing Services,http://opendatacommunities.org/def/concept/finance/sercop/objective/108,Windermere Park,,06/05/2020,105137,350,0,Accommodation 20/04/2020 - 26/04/2020,250000,Housing
South Lakeland District Council,http://opendatacommunities.org/id/district-council/south-lakeland,31/05/2020,Case Management People,Housing Services,http://opendatacommunities.org/def/concept/finance/sercop/objective/108,Windermere Park,,06/05/2020,105138,350,0,Accommodation 20/04/2020 - 26/04/2020,250000,Housing
South Lakeland District Council,http://opendatacommunities.org/id/district-council/south-lakeland,31/05/2020,Case Management People,Housing Services,http://opendatacommunities.org/def/concept/finance/sercop/objective/108,Windermere Park,,06/05/2020,105140,350,0,Accommodation 20/04/2020 - 26/04/2020,250000,Housing
South Lakeland District Council,http://opendatacommunities.org/id/district-council/south-lakeland,31/05/2020,Case Management People,Housing Services,http://opendatacommunities.org/def/concept/finance/sercop/objective/108,Windermere Park,,06/05/2020,105141,350,0,Accommodation 20/04/2020 - 26/04/2020,250000,Housing
South Lakeland District Council,http://opendatacommunities.org/id/district-council/south-lakeland,31/05/2020,Case Management People,Housing Services,http://opendatacommunities.org/def/concept/finance/sercop/objective/108,Windermere Park,,06/05/2020,105142,350,0,Accommodation 20/04/2020 - 26/04/2020,250000,Housing
South Lakeland District Council,http://opendatacommunities.org/id/district-council/south-lakeland,31/05/2020,Case Management People,Housing Services,http://opendatacommunities.org/def/concept/finance/sercop/objective/108,Windermere Park,,06/05/2020,105143,350,0,Accommodation 20/04/2020 - 26/04/2020,250000,Housing
South Lakeland District Council,http://opendatacommunities.org/id/district-council/south-lakeland,31/05/2020,Case Management People,Housing Services,http://opendatacommunities.org/def/concept/finance/sercop/objective/108,Windermere Park,,06/05/2020,105144,350,0,Accommodation 20/04/2020 - 26/04/2020,250000,Housing
South Lakeland District Council,http://opendatacommunities.org/id/district-council/south-lakeland,31/05/2020,Case Management People,Housing Services,http://opendatacommunities.org/def/concept/finance/sercop/objective/108,Windermere Park,,11/05/2020,106222,350,0,Accommodation 27/04/2020 - 01/05/2020,250000,Housing
South Lakeland District Council,http://opendatacommunities.org/id/district-council/south-lakeland,31/05/2020,Case Management People,Housing Services,http://opendatacommunities.org/def/concept/finance/sercop/objective/108,Windermere Park,,11/05/2020,106223,350,0,Accommodation 27/04/2020 - 01/05/2020,250000,Housing
South Lakeland District Council,http://opendatacommunities.org/id/district-council/south-lakeland,31/05/2020,Case Management People,Housing Services,http://opendatacommunities.org/def/concept/finance/sercop/objective/108,Windermere Park,,11/05/2020,106224,350,0,Accommodation 27/04/2020 - 01/05/2020,250000,Housing
South Lakeland District Council,http://opendatacommunities.org/id/district-council/south-lakeland,31/05/2020,Case Management People,Housing Services,http://opendatacommunities.org/def/concept/finance/sercop/objective/108,Windermere Park,,11/05/2020,106225,350,0,Accommodation 27/04/2020 - 01/05/2020,250000,Housing
South Lakeland District Council,http://opendatacommunities.org/id/district-council/south-lakeland,31/05/2020,Case Management People,Housing Services,http://opendatacommunities.org/def/concept/finance/sercop/objective/108,Windermere Park,,11/05/2020,106226,350,0,Accommodation 27/04/2020 - 01/05/2020,250000,Housing
South Lakeland District Council,http://opendatacommunities.org/id/district-council/south-lakeland,31/05/2020,Case Management People,Housing Services,http://opendatacommunities.org/def/concept/finance/sercop/objective/108,Windermere Park,,18/05/2020,106467,350,0,Accommodation 04/05/2020 - 10/05/2020,250000,Housing
South Lakeland District Council,http://opendatacommunities.org/id/district-council/south-lakeland,31/05/2020,Case Management People,Housing Services,http://opendatacommunities.org/def/concept/finance/sercop/objective/108,Windermere Park,,18/05/2020,106468,350,0,Accommodation 04/05/2020 - 10/05/2020,250000,Housing
South Lakeland District Council,http://opendatacommunities.org/id/district-council/south-lakeland,31/05/2020,Case Management People,Housing Services,http://opendatacommunities.org/def/concept/finance/sercop/objective/108,Windermere Park,,18/05/2020,106944,350,0,Accommodation 04/05/2020 - 10/05/2020,250000,Housing
South Lakeland District Council,http://opendatacommunities.org/id/district-council/south-lakeland,31/05/2020,Case Management People,Housing Services,http://opendatacommunities.org/def/concept/finance/sercop/objective/108,Windermere Park,,18/05/2020,106945,350,0,Accommodation 04/05/2020 - 10/05/2020,250000,Housing
South Lakeland District Council,http://opendatacommunities.org/id/district-council/south-lakeland,31/05/2020,Case Management People,Housing Services,http://opendatacommunities.org/def/concept/finance/sercop/objective/108,Windermere Park,,27/05/2020,107239,350,0,Accommodation 11/05/2020 - 17/05/2020,250000,Housing
South Lakeland District Council,http://opendatacommunities.org/id/district-council/south-lakeland,31/05/2020,Case Management People,Housing Services,http://opendatacommunities.org/def/concept/finance/sercop/objective/108,Windermere Park,,27/05/2020,107240,350,0,Accommodation 11/05/2020 - 17/05/2020,250000,Housing
South Lakeland District Council,http://opendatacommunities.org/id/district-council/south-lakeland,31/05/2020,Case Management People,Housing Services,http://opendatacommunities.org/def/concept/finance/sercop/objective/108,Windermere Park,,27/05/2020,107241,350,0,Accommodation 11/05/2020 - 17/05/2020,250000,Housing
South Lakeland District Council,http://opendatacommunities.org/id/district-council/south-lakeland,31/05/2020,Case Management People,Housing Services,http://opendatacommunities.org/def/concept/finance/sercop/objective/108,Windermere Park,,27/05/2020,107242,350,0,Accommodation 11/05/2020 - 17/05/2020,250000,Housing
South Lakeland District Council,http://opendatacommunities.org/id/district-council/south-lakeland,31/05/2020,Case Management People,Housing Services,http://opendatacommunities.org/def/concept/finance/sercop/objective/108,Windermere Park,,27/05/2020,107243,350,0,Accommodation 11/05/2020 - 17/05/2020,250000,Housing
South Lakeland District Council,http://opendatacommunities.org/id/district-council/south-lakeland,31/05/2020,Case Management People,Housing Services,http://opendatacommunities.org/def/concept/finance/sercop/objective/108,Windermere Park,,01/06/2020,107602,350,0,Accommodation 18/05/2020 - 24/05/2020,250000,Housing
South Lakeland District Council,http://opendatacommunities.org/id/district-council/south-lakeland,31/05/2020,Case Management People,Housing Services,http://opendatacommunities.org/def/concept/finance/sercop/objective/108,Windermere Park,,01/06/2020,107604,350,0,Accommodation 18/05/2020 - 24/05/2020,250000,Housing
South Lakeland District Council,http://opendatacommunities.org/id/district-council/south-lakeland,31/05/2020,Case Management People,Housing Services,http://opendatacommunities.org/def/concept/finance/sercop/objective/108,Windermere Park,,01/06/2020,107605,350,0,Accommodation 18/05/2020 - 24/05/2020,250000,Housing
South Lakeland District Council,http://opendatacommunities.org/id/district-council/south-lakeland,31/05/2020,Case Management People,Housing Services,http://opendatacommunities.org/def/concept/finance/sercop/objective/108,Windermere Park,,01/06/2020,107606,350,0,Accommodation 18/05/2020 - 24/05/2020,250000,Housing
South Lakeland District Council,http://opendatacommunities.org/id/district-council/south-lakeland,31/05/2020,Case Management People,Housing Services,http://opendatacommunities.org/def/concept/finance/sercop/objective/108,Windermere Park,,01/06/2020,107607,350,0,Accommodation 18/05/2020 - 24/05/2020,250000,Housing
South Lakeland District Council,http://opendatacommunities.org/id/district-council/south-lakeland,31/05/2020,Business Support Community Services,Cultural Environmental Regulatory & Planning Services,http://opendatacommunities.org/def/concept/finance/sercop/objective/104,Initial,1298292,06/05/2020,105150,352.5,0,Clinical waste collections - 2020/21,131011,Cleaning & Janitorial Cleaning Materials
South Lakeland District Council,http://opendatacommunities.org/id/district-council/south-lakeland,31/05/2020,Business Support Community Services,Cultural Environmental Regulatory & Planning Services,http://opendatacommunities.org/def/concept/finance/sercop/objective/104,FAUN ZOELLER (UK) LTD,751804,27/05/2020,107081,352.6,0,Parts & repairs,381400,Vehicle Mgt Maintenance
South Lakeland District Council,http://opendatacommunities.org/id/district-council/south-lakeland,31/05/2020,Business Support Community Services,Cultural Environmental Regulatory & Planning Services,http://opendatacommunities.org/def/concept/finance/sercop/objective/104,CV COMPONENTS,,13/05/2020,105893,359.39,0,Parts,381500,Vehicle Mgt Parts
South Lakeland District Council,http://opendatacommunities.org/id/district-council/south-lakeland,31/05/2020,Support Services,Culture and Related Serv,http://opendatacommunities.org/def/concept/finance/sercop/objective/104,CRUDEN (IN ADMINISTRATION),3851237,04/05/2020,105172,364.28,0,Work at Castle Hill Field,391111,Construction Buildings Repair & Mtce
South Lakeland District Council,http://opendatacommunities.org/id/district-council/south-lakeland,31/05/2020,Business Support Community Services,Cultural Environmental Regulatory & Planning Services,http://opendatacommunities.org/def/concept/finance/sercop/objective/104,GARWOOD EUROPE LTD,4333504,27/05/2020,107077,366.67,0,Parts,182011,Environment Waste Management Consumables
South Lakeland District Council,http://opendatacommunities.org/id/district-council/south-lakeland,31/05/2020,Business Support Community Services,Cultural Environmental Regulatory & Planning Services,http://opendatacommunities.org/def/concept/finance/sercop/objective/104,FAUN ZOELLER (UK) LTD,751804,27/05/2020,107086,368.2,0,Parts,381400,Vehicle Mgt Maintenance
South Lakeland District Council,http://opendatacommunities.org/id/district-council/south-lakeland,31/05/2020,Case Management People,Housing Services,http://opendatacommunities.org/def/concept/finance/sercop/objective/108,Landlord,,13/05/2020,106424,372,0,Accommodation Linda's Bunkhouse,250000,Housing
South Lakeland District Council,http://opendatacommunities.org/id/district-council/south-lakeland,31/05/2020,Lake Wardens,Cultural Environmental Regulatory & Planning Services,http://opendatacommunities.org/def/concept/finance/sercop/objective/104,ARNOLD DIGGLE & CO LTD,8650931,06/05/2020,104717,380,0,May 2020 to April 2021 - GPRS Airtime -,102200,Building Plumbing
South Lakeland District Council,http://opendatacommunities.org/id/district-council/south-lakeland,31/05/2020,Business Support Community Services,Cultural Environmental Regulatory & Planning Services,http://opendatacommunities.org/def/concept/finance/sercop/objective/104,FUCHS LUBRICANTS (UK) PLC,2412689,27/05/2020,107258,384,0,Cartridges,381100,Vehicle Mgt Fuel
South Lakeland District Council,http://opendatacommunities.org/id/district-council/south-lakeland,31/05/2020,Human Resources,Central Services,http://opendatacommunities.org/def/concept/finance/sercop/objective/102,Choose Occupational Health,7365943,06/05/2020,105968,387.5,0,Medical - ,191800,Facilities Public Relations & Image
South Lakeland District Council,http://opendatacommunities.org/id/district-council/south-lakeland,31/05/2020,Case Management Account Mgmt,Central Services,http://opendatacommunities.org/def/concept/finance/sercop/objective/102,PDP COMPANIES,3893956,01/06/2020,107601,395,0,D.P - FOI E Learning Practical Training,261500,HR Training & Conferences
South Lakeland District Council,http://opendatacommunities.org/id/district-council/south-lakeland,31/05/2020,Case Management People,Housing Services,http://opendatacommunities.org/def/concept/finance/sercop/objective/108,D Clark Properties,,11/05/2020,106238,400,0,"Accommodation The Lodge, Barrow",250000,Housing
South Lakeland District Council,http://opendatacommunities.org/id/district-council/south-lakeland,31/05/2020,Case Management People,Housing Services,http://opendatacommunities.org/def/concept/finance/sercop/objective/108,D Clark Properties,,27/05/2020,107095,400,0,"Accommodation The Lodge, Barrow",250000,Housing
South Lakeland District Council,http://opendatacommunities.org/id/district-council/south-lakeland,31/05/2020,Case Management Account Mgmt,Cultural Environmental Regulatory & Planning Services,http://opendatacommunities.org/def/concept/finance/sercop/objective/104,THE NATIONAL TRUST,,27/05/2020,107238,400,0,For rent of land at Ferry Nab December,202100,Financial Services Subscriptions
South Lakeland District Council,http://opendatacommunities.org/id/district-council/south-lakeland,31/05/2020,Development Implementation,Cultural Environmental Regulatory & Planning Services,http://opendatacommunities.org/def/concept/finance/sercop/objective/104,WiFi Spark Ltd,,06/05/2020,105994,402.18,0,Kendal Town Centre Wifi Maintenance,271800,ICT Telecommunications Mobile
South Lakeland District Council,http://opendatacommunities.org/id/district-council/south-lakeland,31/05/2020,Business Support Community Services,Cultural Environmental Regulatory & Planning Services,http://opendatacommunities.org/def/concept/finance/sercop/objective/104,Haztec International Ltd,4157886,06/05/2020,105930,406.42,0,Beacons,380000,Vehicle Management
South Lakeland District Council,http://opendatacommunities.org/id/district-council/south-lakeland,31/05/2020,Case Management People,Housing Services,http://opendatacommunities.org/def/concept/finance/sercop/objective/108,Landlord,,01/06/2020,107609,415,0,"Monthly rent 4D The Courtyard, Kendal",250010,Housing Letting Agents
South Lakeland District Council,http://opendatacommunities.org/id/district-council/south-lakeland,31/05/2020,Business Support Community Services,Cultural Environmental Regulatory & Planning Services,http://opendatacommunities.org/def/concept/finance/sercop/objective/104,REEN Technologies Limited,9347391,13/05/2020,106389,416,0,Monthly subscriptions 2019/20,261517,ICT-Consultancy
South Lakeland District Council,http://opendatacommunities.org/id/district-council/south-lakeland,31/05/2020,ICT Group,Central Services,http://opendatacommunities.org/def/concept/finance/sercop/objective/102,PHOENIX SOFTWARE LTD,2548628,20/05/2020,106867,431.2,0,01342160    TJ7-00001,271600,ICT Software Customised & Bespoke
South Lakeland District Council,http://opendatacommunities.org/id/district-council/south-lakeland,31/05/2020,Business Support Community Services,Central Services,http://opendatacommunities.org/def/concept/finance/sercop/objective/102,The Oyster Partnership,5020374,27/05/2020,92102,433.5,0,Agency Environmental Health Officer,261300,HR Recruitment & Assessment
South Lakeland District Council,http://opendatacommunities.org/id/district-council/south-lakeland,31/05/2020,Case Management People,Housing Services,http://opendatacommunities.org/def/concept/finance/sercop/objective/108,Ashberry Recruitment,7202591,27/05/2020,107317,438.74,0,Agency staff at Town View Fields,261300,HR Recruitment & Assessment
South Lakeland District Council,http://opendatacommunities.org/id/district-council/south-lakeland,31/05/2020,Business Support Community Services,Cultural Environmental Regulatory & Planning Services,http://opendatacommunities.org/def/concept/finance/sercop/objective/104,COMPASS COMPONENTS,,27/05/2020,107261,449.56,0,Consumables 2019/20,101400,Building General Materials
South Lakeland District Council,http://opendatacommunities.org/id/district-council/south-lakeland,31/05/2020,Support Services,Central Services,http://opendatacommunities.org/def/concept/finance/sercop/objective/102,NEWSQUEST MEDIA GROUP LTD,3102566,18/05/2020,106858,453.17,0,Advertising costs for the Spring 2020,191000,Facilities Advertising
South Lakeland District Council,http://opendatacommunities.org/id/district-council/south-lakeland,31/05/2020,Business Support Community Services,Cultural Environmental Regulatory & Planning Services,http://opendatacommunities.org/def/concept/finance/sercop/objective/104,J R RICHARDSON LTD,2225792,13/05/2020,106392,456.84,0,Vehicle washing consumables,381500,Vehicle Mgt Parts
South Lakeland District Council,http://opendatacommunities.org/id/district-council/south-lakeland,31/05/2020,Case Management Account Mgmt,Cultural Environmental Regulatory & Planning Services,http://opendatacommunities.org/def/concept/finance/sercop/objective/104,Bergen Arbortech,,11/05/2020,106235,462,0,For removal of damaged beech tree at,241210,Horticultural Tree Trimming
South Lakeland District Council,http://opendatacommunities.org/id/district-council/south-lakeland,31/05/2020,ICT Group,Central Services,http://opendatacommunities.org/def/concept/finance/sercop/objective/102,DAISY COMMUNICATIONS LTD,4145329,27/05/2020,107075,476.63,0,"Daisy Line Rentel costs, covers 1/4/20",271700,ICT Telecommunications Fixed
South Lakeland District Council,http://opendatacommunities.org/id/district-council/south-lakeland,31/05/2020,Business Support Community Services,Cultural Environmental Regulatory & Planning Services,http://opendatacommunities.org/def/concept/finance/sercop/objective/104,FAUN ZOELLER (UK) LTD,751804,20/05/2020,107048,495.79,0,Parts & repairs,381400,Vehicle Mgt Maintenance
South Lakeland District Council,http://opendatacommunities.org/id/district-council/south-lakeland,31/05/2020,Human Resources,Highways & Transport Services,http://opendatacommunities.org/def/concept/finance/sercop/objective/107,Bluetownonline Ltd,7464701,18/05/2020,106436,499,0,Parking and Cash Collection Supervisor,191000,Facilities Advertising
South Lakeland District Council,http://opendatacommunities.org/id/district-council/south-lakeland,31/05/2020,Human Resources,Central Services,http://opendatacommunities.org/def/concept/finance/sercop/objective/102,Thomson Hayton Winkley,,01/06/2020,107614,500,0,Professional Fees,250010,Housing Letting Agents
South Lakeland District Council,http://opendatacommunities.org/id/district-council/south-lakeland,31/05/2020,Case Management People,Housing Services,http://opendatacommunities.org/def/concept/finance/sercop/objective/108,IMPACT HOUSING ASSOCIATION LTD,IP21411R,13/05/2020,106430,517.76,0,One month plus 1 week rent in advance,250000,Housing
South Lakeland District Council,http://opendatacommunities.org/id/district-council/south-lakeland,31/05/2020,Westmorland Centre Parking Office,Highways & Transport Services,http://opendatacommunities.org/def/concept/finance/sercop/objective/107,Security Plus   Limited,,06/05/2020,104709,525,0,Cash processing - March 2020,209999,Financial Services Not Elsewhere Classif
South Lakeland District Council,http://opendatacommunities.org/id/district-council/south-lakeland,31/05/2020,Business Support Community Services,Cultural Environmental Regulatory & Planning Services,http://opendatacommunities.org/def/concept/finance/sercop/objective/104,A & W COMMERCIALS LTD,2630625,13/05/2020,105889,533.57,0,Hoses,381400,Vehicle Mgt Maintenance
South Lakeland District Council,http://opendatacommunities.org/id/district-council/south-lakeland,31/05/2020,Case Management People,Housing Services,http://opendatacommunities.org/def/concept/finance/sercop/objective/108,FIONA & JOHN ARMER,,01/06/2020,107608,536.98,0,"Monthly rent Flat 3, 13 New Rd, Kendal",250000,Housing
South Lakeland District Council,http://opendatacommunities.org/id/district-council/south-lakeland,31/05/2020,Case Management People,Housing Services,http://opendatacommunities.org/def/concept/finance/sercop/objective/108,Landlord,,18/05/2020,106949,550,0,"Accommodation Avondale, Silver Street",250000,Housing
South Lakeland District Council,http://opendatacommunities.org/id/district-council/south-lakeland,31/05/2020,ICT Group,Central Services,http://opendatacommunities.org/def/concept/finance/sercop/objective/102,Insight Direct (Uk) Ltd,2579852,13/05/2020,105902,559.99,0,0009759053 VOSTRO 5590 CORE,271200,ICT Hardware
South Lakeland District Council,http://opendatacommunities.org/id/district-council/south-lakeland,31/05/2020,Case Management Account Mgmt,Central Services,http://opendatacommunities.org/def/concept/finance/sercop/objective/102,PITNEY BOWES LTD,182037,06/05/2020,104704,562.5,0,2020-21 Stock Envelopes,301200,Mail Services� Postage
South Lakeland District Council,http://opendatacommunities.org/id/district-council/south-lakeland,31/05/2020,Case Management Account Mgmt,Central Services,http://opendatacommunities.org/def/concept/finance/sercop/objective/102,ALLPAY.NET LTD (NCR),6871069,01/05/2020,106227,563.62,0,2020-21 Internet Payment / bank charges,209999,Financial Services Not Elsewhere Classif
South Lakeland District Council,http://opendatacommunities.org/id/district-council/south-lakeland,31/05/2020,Case Management People,Central Services,http://opendatacommunities.org/def/concept/finance/sercop/objective/102,ADECCO UK LIMITED,593232,04/05/2020,103057,578.7,0,Payment ,261400,HR Temporary & Agency Staff
South Lakeland District Council,http://opendatacommunities.org/id/district-council/south-lakeland,31/05/2020,Case Management People,Central Services,http://opendatacommunities.org/def/concept/finance/sercop/objective/102,ADECCO UK LIMITED,593232,01/06/2020,106936,578.7,0,Payment for ,261400,HR Temporary & Agency Staff
South Lakeland District Council,http://opendatacommunities.org/id/district-council/south-lakeland,31/05/2020,ICT Group,Central Services,http://opendatacommunities.org/def/concept/finance/sercop/objective/102,eBuyer.com,,06/05/2020,105876,582.75,0,HP 250 G7 15.6&quot; Full HD Intel Core,271200,ICT Hardware
South Lakeland District Council,http://opendatacommunities.org/id/district-council/south-lakeland,31/05/2020,Business Support Community Services,Cultural Environmental Regulatory & Planning Services,http://opendatacommunities.org/def/concept/finance/sercop/objective/104,Harry Park Tyres Ltd,8131208,13/05/2020,105895,595,0,Tyres,381500,Vehicle Mgt Parts
South Lakeland District Council,http://opendatacommunities.org/id/district-council/south-lakeland,31/05/2020,Support Services,Cultural Environmental Regulatory & Planning Services,http://opendatacommunities.org/def/concept/finance/sercop/objective/104,Geldards LLP,,06/05/2020,106008,600,0,Professional fees for Lakeland Arts,280000,Legal Services
South Lakeland District Council,http://opendatacommunities.org/id/district-council/south-lakeland,31/05/2020,Support Services,Cultural Environmental Regulatory & Planning Services,http://opendatacommunities.org/def/concept/finance/sercop/objective/104,Geldards LLP,,06/05/2020,106009,600,0,Professional fees for Wordsworth Trust,280000,Legal Services
South Lakeland District Council,http://opendatacommunities.org/id/district-council/south-lakeland,31/05/2020,Development Implementation,Central Services,http://opendatacommunities.org/def/concept/finance/sercop/objective/102,J S Cleaning Services,,20/05/2020,105881,608,0,Cleaner for SLDC - April 2019 Onwards,131010,Cleaning & Janitorial Cleaning Materials
South Lakeland District Council,http://opendatacommunities.org/id/district-council/south-lakeland,31/05/2020,Business Support Community Services,Central Services,http://opendatacommunities.org/def/concept/finance/sercop/objective/102,CUMBRIA COUNTY COUNCIL,,06/05/2020,104707,624,0,LAND CHARGE SEARCH ENQUIRIES COMMONS,908000,Public Bodies Council support services
South Lakeland District Council,http://opendatacommunities.org/id/district-council/south-lakeland,31/05/2020,Case Management People,Housing Services,http://opendatacommunities.org/def/concept/finance/sercop/objective/108,Rentokil Initial,301044,06/05/2020,105151,650,0,Room clean and disposal of hazardous,130000,Cleanine & Janitorial
South Lakeland District Council,http://opendatacommunities.org/id/district-council/south-lakeland,31/05/2020,Case Management Account Mgmt,Central Services,http://opendatacommunities.org/def/concept/finance/sercop/objective/102,Inform CPI Ltd,,27/05/2020,107290,650,0,RV Finder,271600,ICT Software Customised & Bespoke
South Lakeland District Council,http://opendatacommunities.org/id/district-council/south-lakeland,31/05/2020,Human Resources,Central Services,http://opendatacommunities.org/def/concept/finance/sercop/objective/102,ADECCO UK LIMITED,593232,04/05/2020,103056,653.63,0,Payment,261400,HR Temporary & Agency Staff
South Lakeland District Council,http://opendatacommunities.org/id/district-council/south-lakeland,31/05/2020,Business Support Community Services,Cultural Environmental Regulatory & Planning Services,http://opendatacommunities.org/def/concept/finance/sercop/objective/104,FAUN ZOELLER (UK) LTD,751804,20/05/2020,107049,668.6,0,Parts,381400,Vehicle Mgt Maintenance
South Lakeland District Council,http://opendatacommunities.org/id/district-council/south-lakeland,31/05/2020,Business Support Community Services,Cultural Environmental Regulatory & Planning Services,http://opendatacommunities.org/def/concept/finance/sercop/objective/104,AAM SERVICES LTD,3176122,27/05/2020,107250,675,0,Removal & disposal of asbestos from,381500,Vehicle Mgt Parts
South Lakeland District Council,http://opendatacommunities.org/id/district-council/south-lakeland,31/05/2020,Case Management Account Mgmt,Cultural Environmental Regulatory & Planning Services,http://opendatacommunities.org/def/concept/finance/sercop/objective/104,SOUTH LAKES TREE SURGEONS & LANDSCAPES,5342745,13/05/2020,104394,680,0,Removal of horse chesnut tree from,241210,Horticultural Tree Trimming
South Lakeland District Council,http://opendatacommunities.org/id/district-council/south-lakeland,31/05/2020,Case Management Account Mgmt,Central Services,http://opendatacommunities.org/def/concept/finance/sercop/objective/102,Inform CPI Ltd,,27/05/2020,107291,680,0,RV Finder,271600,ICT Software Customised & Bespoke
South Lakeland District Council,http://opendatacommunities.org/id/district-council/south-lakeland,31/05/2020,Business Support Community Services,Cultural Environmental Regulatory & Planning Services,http://opendatacommunities.org/def/concept/finance/sercop/objective/104,HAKO MACHINES LIMITED,1414225,18/05/2020,106966,693.75,0,Parts & repairs,131000,Cleaning & Janitorial Cleaning Materials
South Lakeland District Council,http://opendatacommunities.org/id/district-council/south-lakeland,31/05/2020,Case Management People,Housing Services,http://opendatacommunities.org/def/concept/finance/sercop/objective/108,AMF Property,,01/06/2020,107639,700,0,Rent in advance and deposit,250010,Housing Letting Agents
South Lakeland District Council,http://opendatacommunities.org/id/district-council/south-lakeland,31/05/2020,Case Management Account Mgmt,Cultural Environmental Regulatory & Planning Services,http://opendatacommunities.org/def/concept/finance/sercop/objective/104,CONTINENTAL LANDSCAPES LTD,2108452,18/05/2020,106443,706.6,0,Extra works for grounds maintenance,391310,Construction Open Spaces Construction
South Lakeland District Council,http://opendatacommunities.org/id/district-council/south-lakeland,31/05/2020,Case Management Account Mgmt,Central Services,http://opendatacommunities.org/def/concept/finance/sercop/objective/102,PITNEY BOWES LTD,182037,06/05/2020,104705,714.5,0,2020-21 Stock Envelopes,301200,Mail Services� Postage
South Lakeland District Council,http://opendatacommunities.org/id/district-council/south-lakeland,31/05/2020,Business Support Community Services,Cultural Environmental Regulatory & Planning Services,http://opendatacommunities.org/def/concept/finance/sercop/objective/104,TEAL PATENTS LTD,3212208,27/05/2020,107247,720.9,0,Handwash,111100,Catering Equipment & Utensils
South Lakeland District Council,http://opendatacommunities.org/id/district-council/south-lakeland,31/05/2020,Business Support Community Services,Cultural Environmental Regulatory & Planning Services,http://opendatacommunities.org/def/concept/finance/sercop/objective/104,CUMBRIA TRUCK CENTRE LTD,4298488,06/05/2020,105160,726.3,0,Repairs,381300,Vehicle Mgt Industrial
South Lakeland District Council,http://opendatacommunities.org/id/district-council/south-lakeland,31/05/2020,Case Management People,Central Services,http://opendatacommunities.org/def/concept/finance/sercop/objective/102,ADECCO UK LIMITED,593232,04/05/2020,105168,733.02,0,Payment for ,261400,HR Temporary & Agency Staff
South Lakeland District Council,http://opendatacommunities.org/id/district-council/south-lakeland,31/05/2020,Business Support Community Services,Cultural Environmental Regulatory & Planning Services,http://opendatacommunities.org/def/concept/finance/sercop/objective/104,THOMAS GRAHAM & SONS LTD,656879,13/05/2020,106380,737,0,Per quote QM745451,101400,Building General Materials
South Lakeland District Council,http://opendatacommunities.org/id/district-council/south-lakeland,31/05/2020,Case Management Account Mgmt,Highways & Transport Services,http://opendatacommunities.org/def/concept/finance/sercop/objective/107,METRIC GROUP LIMITED,2560839,18/05/2020,106470,745.5,0,Web Hosting costs 01/04/2020 to,359999,Street & Traffic Not Elsewhere Classifie
South Lakeland District Council,http://opendatacommunities.org/id/district-council/south-lakeland,31/05/2020,Business Support Community Services,Cultural Environmental Regulatory & Planning Services,http://opendatacommunities.org/def/concept/finance/sercop/objective/104,Haztec International Ltd,4157886,06/05/2020,105931,749.92,0,Beacons,380000,Vehicle Management
South Lakeland District Council,http://opendatacommunities.org/id/district-council/south-lakeland,31/05/2020,Support Services,Central Services,http://opendatacommunities.org/def/concept/finance/sercop/objective/102,7 Harrington Street Chambers,,27/05/2020,107312,750,0,SOUTH LAKELAND DC V HOLKER ESTATES,281300,Legal Services Legal Opinion
South Lakeland District Council,http://opendatacommunities.org/id/district-council/south-lakeland,31/05/2020,Case Management People,Central Services,http://opendatacommunities.org/def/concept/finance/sercop/objective/102,ADECCO UK LIMITED,593232,13/05/2020,106407,761.96,0,Payment for ,261400,HR Temporary & Agency Staff
South Lakeland District Council,http://opendatacommunities.org/id/district-council/south-lakeland,31/05/2020,Case Management Account Mgmt,Cultural Environmental Regulatory & Planning Services,http://opendatacommunities.org/def/concept/finance/sercop/objective/104,Bergen Arbortech,,13/05/2020,105910,770,0,Call out tree works at Kendal Green and,241210,Horticultural Tree Trimming
South Lakeland District Council,http://opendatacommunities.org/id/district-council/south-lakeland,31/05/2020,Case Management Regulatory,Central Services,http://opendatacommunities.org/def/concept/finance/sercop/objective/102,The Oyster Partnership,5020374,04/05/2020,103992,792,0,Agency Environmental Health Officer,261300,HR Recruitment & Assessment
South Lakeland District Council,http://opendatacommunities.org/id/district-council/south-lakeland,31/05/2020,Case Management Regulatory,Central Services,http://opendatacommunities.org/def/concept/finance/sercop/objective/102,The Oyster Partnership,5020374,06/05/2020,105156,792,0,Agency Environmental Health Officer,261300,HR Recruitment & Assessment
South Lakeland District Council,http://opendatacommunities.org/id/district-council/south-lakeland,31/05/2020,Case Management Regulatory,Central Services,http://opendatacommunities.org/def/concept/finance/sercop/objective/102,The Oyster Partnership,5020374,04/05/2020,103990,800,0,Agency Environmental Health Officer,261300,HR Recruitment & Assessment
South Lakeland District Council,http://opendatacommunities.org/id/district-council/south-lakeland,31/05/2020,Case Management Account Mgmt,Cultural Environmental Regulatory & Planning Services,http://opendatacommunities.org/def/concept/finance/sercop/objective/104,BROXAP LIMITED,2583752,06/05/2020,104706,803.1,0,80mm Aluminium Freestanding Football,231700,Highways Street Furniture & Ironworks
South Lakeland District Council,http://opendatacommunities.org/id/district-council/south-lakeland,31/05/2020,Business Support Community Services,Cultural Environmental Regulatory & Planning Services,http://opendatacommunities.org/def/concept/finance/sercop/objective/104,BOC GASES,337663,06/05/2020,105937,814,0,Gas supplies 2019/20,371100,Utilities Gas
South Lakeland District Council,http://opendatacommunities.org/id/district-council/south-lakeland,31/05/2020,Case Management Regulatory,Central Services,http://opendatacommunities.org/def/concept/finance/sercop/objective/102,The Oyster Partnership,5020374,27/05/2020,105999,825,0,Agency Environmental Health Officer,261300,HR Recruitment & Assessment
South Lakeland District Council,http://opendatacommunities.org/id/district-council/south-lakeland,31/05/2020,Case Management Regulatory,Central Services,http://opendatacommunities.org/def/concept/finance/sercop/objective/102,The Oyster Partnership,5020374,18/05/2020,106861,825,0,Agency Environmental Health Officer,261300,HR Recruitment & Assessment
South Lakeland District Council,http://opendatacommunities.org/id/district-council/south-lakeland,31/05/2020,Case Management Regulatory,Central Services,http://opendatacommunities.org/def/concept/finance/sercop/objective/102,The Oyster Partnership,5020374,27/05/2020,107276,825,0,Agency Environmental Health Officer,261300,HR Recruitment & Assessment
South Lakeland District Council,http://opendatacommunities.org/id/district-council/south-lakeland,31/05/2020,Business Support Community Services,Cultural Environmental Regulatory & Planning Services,http://opendatacommunities.org/def/concept/finance/sercop/objective/104,RPC BPI RECYCLED PRODUCTS,350729,13/05/2020,106416,826,0,"FL0034. Heavy Duty Bin Liner. 27"" x 46""",182013,Environment Waste Mgt Waste Collection
South Lakeland District Council,http://opendatacommunities.org/id/district-council/south-lakeland,31/05/2020,Case Management People,Housing Services,http://opendatacommunities.org/def/concept/finance/sercop/objective/108,Landlord,,20/05/2020,107062,839.88,0,"Monthly rent Flat 3, 13 New Road",250000,Housing
South Lakeland District Council,http://opendatacommunities.org/id/district-council/south-lakeland,31/05/2020,Human Resources,Central Services,http://opendatacommunities.org/def/concept/finance/sercop/objective/102,ADECCO UK LIMITED,593232,18/05/2020,106403,871.5,0,Payment,261400,HR Temporary & Agency Staff
South Lakeland District Council,http://opendatacommunities.org/id/district-council/south-lakeland,31/05/2020,Human Resources,Central Services,http://opendatacommunities.org/def/concept/finance/sercop/objective/102,ADECCO UK LIMITED,593232,20/05/2020,106405,871.5,0,Payment,261400,HR Temporary & Agency Staff
South Lakeland District Council,http://opendatacommunities.org/id/district-council/south-lakeland,31/05/2020,Business Support Community Services,Cultural Environmental Regulatory & Planning Services,http://opendatacommunities.org/def/concept/finance/sercop/objective/104,Harry Park Tyres Ltd,8131208,27/05/2020,107045,892.5,0,Tyres,381500,Vehicle Mgt Parts
South Lakeland District Council,http://opendatacommunities.org/id/district-council/south-lakeland,31/05/2020,Business Support Community Services,SLDC as Agent,,Viewdeck Consulting Limited,,06/05/2020,105953,895,0,Cumbria Choice Consultancy Work,150000,Consultancy
South Lakeland District Council,http://opendatacommunities.org/id/district-council/south-lakeland,31/05/2020,Business Support Community Services,Cultural Environmental Regulatory & Planning Services,http://opendatacommunities.org/def/concept/finance/sercop/objective/104,Harry Park Tyres Ltd,8131208,18/05/2020,106957,915,0,Tyres,381500,Vehicle Mgt Parts
South Lakeland District Council,http://opendatacommunities.org/id/district-council/south-lakeland,31/05/2020,Case Management People,Housing Services,http://opendatacommunities.org/def/concept/finance/sercop/objective/108,NORTHERN HOUSING CONSORTIUM LTD,4361009,06/05/2020,105991,925,0,Full Membership Northern Housing,250000,Housing
South Lakeland District Council,http://opendatacommunities.org/id/district-council/south-lakeland,31/05/2020,Leisure and Wellbeing,Cultural Environmental Regulatory & Planning Services,http://opendatacommunities.org/def/concept/finance/sercop/objective/104,CONTINENTAL LANDSCAPES LTD,2108452,13/05/2020,103997,942.52,0,Extra works for arboriculture for April,391310,Construction Open Spaces Construction
South Lakeland District Council,http://opendatacommunities.org/id/district-council/south-lakeland,31/05/2020,Development Strategy,Cultural Environmental Regulatory & Planning Services,http://opendatacommunities.org/def/concept/finance/sercop/objective/104,Bridget Turnbull,,13/05/2020,105911,960,0,Conservation Officer work. 20 days at,152050,Consultancy Property
South Lakeland District Council,http://opendatacommunities.org/id/district-council/south-lakeland,31/05/2020,Case Management Regulatory,Central Services,http://opendatacommunities.org/def/concept/finance/sercop/objective/102,The Oyster Partnership,5020374,18/05/2020,106860,960,0,Agency Environmental Health Officer,261300,HR Recruitment & Assessment
South Lakeland District Council,http://opendatacommunities.org/id/district-council/south-lakeland,31/05/2020,Support Services,Central Services,http://opendatacommunities.org/def/concept/finance/sercop/objective/102,BREWERY ARTS CENTRE,,06/05/2020,105145,1000,0,Locality donation to fund the Creative,291000,Arts & Leisure Services Events
South Lakeland District Council,http://opendatacommunities.org/id/district-council/south-lakeland,31/05/2020,Case Management Regulatory,Central Services,http://opendatacommunities.org/def/concept/finance/sercop/objective/102,The Oyster Partnership,5020374,06/05/2020,105157,1000,0,Agency Environmental Health Officer,261300,HR Recruitment & Assessment
South Lakeland District Council,http://opendatacommunities.org/id/district-council/south-lakeland,31/05/2020,Case Management Regulatory,Central Services,http://opendatacommunities.org/def/concept/finance/sercop/objective/102,The Oyster Partnership,5020374,18/05/2020,106862,1000,0,Agency Environmental Health Officer,261300,HR Recruitment & Assessment
South Lakeland District Council,http://opendatacommunities.org/id/district-council/south-lakeland,31/05/2020,Case Management Regulatory,Central Services,http://opendatacommunities.org/def/concept/finance/sercop/objective/102,The Oyster Partnership,5020374,27/05/2020,107277,1000,0,Agency Environmental Health Officer,261300,HR Recruitment & Assessment
South Lakeland District Council,http://opendatacommunities.org/id/district-council/south-lakeland,31/05/2020,Support Services,Central Services,http://opendatacommunities.org/def/concept/finance/sercop/objective/102,District Councils' Network,,13/05/2020,106370,1045,0,Annual subcription to the District,202100,Financial Services Subscriptions
South Lakeland District Council,http://opendatacommunities.org/id/district-council/south-lakeland,31/05/2020,Westmorland Centre Parking Office,Highways & Transport Services,http://opendatacommunities.org/def/concept/finance/sercop/objective/107,Security Plus   Limited,,06/05/2020,104708,1047.55,0,Cash processing - March 2020,209999,Financial Services Not Elsewhere Classif
South Lakeland District Council,http://opendatacommunities.org/id/district-council/south-lakeland,31/05/2020,Support Services,Housing Services,http://opendatacommunities.org/def/concept/finance/sercop/objective/108,LRM Security Ltd,,20/05/2020,106434,1080,0,Town View Fields Security Support,192213,Facilities Security Manned Guarding
South Lakeland District Council,http://opendatacommunities.org/id/district-council/south-lakeland,31/05/2020,Support Services,Culture and Related Serv,http://opendatacommunities.org/def/concept/finance/sercop/objective/104,Bowland Ecology Ltd,5348761,27/05/2020,107100,1080,0,Planning Assistance,152050,Consultancy Property
South Lakeland District Council,http://opendatacommunities.org/id/district-council/south-lakeland,31/05/2020,Business Support Community Services,Cultural Environmental Regulatory & Planning Services,http://opendatacommunities.org/def/concept/finance/sercop/objective/104,Logistics UK,,13/05/2020,106394,1100,0,Membership 01/05/20 - 30/04/21,361100,Public Transport Haulage
South Lakeland District Council,http://opendatacommunities.org/id/district-council/south-lakeland,31/05/2020,ICT Group,Central Services,http://opendatacommunities.org/def/concept/finance/sercop/objective/102,Insight Direct (Uk) Ltd,2579852,18/05/2020,104000,1119.98,0,0009759053 VOSTRO 5590 CORE,271200,ICT Hardware
South Lakeland District Council,http://opendatacommunities.org/id/district-council/south-lakeland,31/05/2020,Revenues and Benefits,Central Services,http://opendatacommunities.org/def/concept/finance/sercop/objective/102,TAMESIDE METROPOLITAN BOROUGH,,27/05/2020,107286,1150.64,0,NAFN Subs to National Anti Fraud,202100,Financial Services Subscriptions
South Lakeland District Council,http://opendatacommunities.org/id/district-council/south-lakeland,31/05/2020,Business Support Community Services,Cultural Environmental Regulatory & Planning Services,http://opendatacommunities.org/def/concept/finance/sercop/objective/104,Verizon Connect UK Ltd,5265904,13/05/2020,106379,1152,0,Annual fee for 70 vehicles from 01/06/20,361000,Public Transport Fleet Management
South Lakeland District Council,http://opendatacommunities.org/id/district-council/south-lakeland,31/05/2020,Finance,Highways & Transport Services,http://opendatacommunities.org/def/concept/finance/sercop/objective/107,E H BOOTH & CO LTD,,20/05/2020,107069,1168.85,0,Qtr 3 Expenses,111200,Catering Food & Beverages
South Lakeland District Council,http://opendatacommunities.org/id/district-council/south-lakeland,31/05/2020,Case Management People,Housing Services,http://opendatacommunities.org/def/concept/finance/sercop/objective/108,Landlord,,18/05/2020,106948,1190,0,Monthly rent Flat 1A Kentworks,202000,Financial Services Rents
South Lakeland District Council,http://opendatacommunities.org/id/district-council/south-lakeland,31/05/2020,Support Services,Highways & Transport Services,http://opendatacommunities.org/def/concept/finance/sercop/objective/107,SC Signs T/A Signs Express Lancaster,,27/05/2020,107102,1197.72,0,Social Distancing Signs for SLDC Car,102400,Building Signage
South Lakeland District Council,http://opendatacommunities.org/id/district-council/south-lakeland,31/05/2020,Support Services,Housing Services,http://opendatacommunities.org/def/concept/finance/sercop/objective/108,LRM Security Ltd,,04/05/2020,105170,1260,0,Town View Fields Security Support,192213,Facilities Security Manned Guarding
South Lakeland District Council,http://opendatacommunities.org/id/district-council/south-lakeland,31/05/2020,Technical Team,Central Services,http://opendatacommunities.org/def/concept/finance/sercop/objective/102,Macdonald & Company Freelance Ltd,3882135,13/05/2020,105982,1278,0,PLANNING CONTRACT STAFF,261400,HR Temporary & Agency Staff
South Lakeland District Council,http://opendatacommunities.org/id/district-council/south-lakeland,31/05/2020,Case Management Account Mgmt,Central Services,http://opendatacommunities.org/def/concept/finance/sercop/objective/102,CAPITA BUSINESS SERVICES LTD,2299747,06/05/2020,104388,1278.61,0,DWP Local Authority Data Share (Lads),261500,HR Training & Conferences
South Lakeland District Council,http://opendatacommunities.org/id/district-council/south-lakeland,31/05/2020,Development Implementation,Culture and Related Serv,http://opendatacommunities.org/def/concept/finance/sercop/objective/104,Paul Butler Associates Ltd,,04/05/2020,103966,1302,0,Grange Lido Promenade,151000,Consultancy Business
South Lakeland District Council,http://opendatacommunities.org/id/district-council/south-lakeland,31/05/2020,Environment and Housing,Housing Services,http://opendatacommunities.org/def/concept/finance/sercop/objective/108,James Andrews Recruitment Solutions,6834852,18/05/2020,106466,1317.89,0,Agency worker for Community-led Housing,261400,HR Temporary & Agency Staff
South Lakeland District Council,http://opendatacommunities.org/id/district-council/south-lakeland,31/05/2020,ICT Group,Central Services,http://opendatacommunities.org/def/concept/finance/sercop/objective/102,Insight Direct (Uk) Ltd,2579852,27/05/2020,107325,1323.35,0,Plantronics Blackwire 3220 Binaural,271200,ICT Hardware
South Lakeland District Council,http://opendatacommunities.org/id/district-council/south-lakeland,31/05/2020,Support Services,Highways & Transport Services,http://opendatacommunities.org/def/concept/finance/sercop/objective/107,SC Signs T/A Signs Express Lancaster,,27/05/2020,107103,1373.19,0,Social Distancing Signs for SLDC Car,102400,Building Signage
South Lakeland District Council,http://opendatacommunities.org/id/district-council/south-lakeland,31/05/2020,Case Management People,SLDC as Agent,,TEXTHELP SYSTEMS LTD,NI31186,06/05/2020,105913,1400,0,Browse aloud renewal 2020-21,271200,ICT Hardware
South Lakeland District Council,http://opendatacommunities.org/id/district-council/south-lakeland,31/05/2020,ICT Group,Central Services,http://opendatacommunities.org/def/concept/finance/sercop/objective/102,eBuyer.com,,06/05/2020,105878,1407.51,0,Plantronics Entera HW121N On-Ear Headset,271200,ICT Hardware
South Lakeland District Council,http://opendatacommunities.org/id/district-council/south-lakeland,31/05/2020,Case Management Account Mgmt,Central Services,http://opendatacommunities.org/def/concept/finance/sercop/objective/102,CFH Docmail Ltd,1716891,18/05/2020,106433,1458.88,0,Postage NNDR Insert Mailing Bills,300000,Mail Services
South Lakeland District Council,http://opendatacommunities.org/id/district-council/south-lakeland,31/05/2020,Case Management People,Cultural Environmental Regulatory & Planning Services,http://opendatacommunities.org/def/concept/finance/sercop/objective/104,CONTINENTAL LANDSCAPES LTD,2108452,11/05/2020,105153,1468.32,0,Additional boarding for covering graves,391310,Construction Open Spaces Construction
South Lakeland District Council,http://opendatacommunities.org/id/district-council/south-lakeland,31/05/2020,Lake Wardens,SLDC as Agent,,LAKE DISTRICT NATIONAL PARK AUTHORITY,,06/05/2020,105916,1500,0,Monthly Invoices for 2019/2020 for Boat,201700,Financial Services Grants
South Lakeland District Council,http://opendatacommunities.org/id/district-council/south-lakeland,31/05/2020,Case Management People,Housing Services,http://opendatacommunities.org/def/concept/finance/sercop/objective/108,D Clark Properties,,27/05/2020,107172,1500,0,"Accommodation Ramsden St, Barrow",250000,Housing
South Lakeland District Council,http://opendatacommunities.org/id/district-council/south-lakeland,31/05/2020,Case Management Account Mgmt,Cultural Environmental Regulatory & Planning Services,http://opendatacommunities.org/def/concept/finance/sercop/objective/104,CONTINENTAL LANDSCAPES LTD,2108452,18/05/2020,106443,1513.4,0,Extra works for grounds maintenance,391310,Construction Open Spaces Construction
South Lakeland District Council,http://opendatacommunities.org/id/district-council/south-lakeland,31/05/2020,Finance,Highways & Transport Services,http://opendatacommunities.org/def/concept/finance/sercop/objective/107,E H BOOTH & CO LTD,,20/05/2020,107069,1518.67,0,Qtr 3 Expenses,111200,Catering Food & Beverages
South Lakeland District Council,http://opendatacommunities.org/id/district-council/south-lakeland,31/05/2020,Support Services,Other Items,,"Marquees & Teepees, Killington Ltd",,04/05/2020,105173,1555.42,0,Kendal Recovery Centre at Kendal,192212,Facilities Security Equipment
South Lakeland District Council,http://opendatacommunities.org/id/district-council/south-lakeland,31/05/2020,Technical Team,Central Services,http://opendatacommunities.org/def/concept/finance/sercop/objective/102,Macdonald & Company Freelance Ltd,3882135,06/05/2020,103038,1557,0,PLANNING CONTRACT STAFF,261400,HR Temporary & Agency Staff
South Lakeland District Council,http://opendatacommunities.org/id/district-council/south-lakeland,31/05/2020,Business Support Community Services,Cultural Environmental Regulatory & Planning Services,http://opendatacommunities.org/def/concept/finance/sercop/objective/104,FLEET PARTS LTD,1252714,06/05/2020,105947,1570,0,Subscription for the Texa truck software,381500,Vehicle Mgt Parts
South Lakeland District Council,http://opendatacommunities.org/id/district-council/south-lakeland,31/05/2020,Case Management Regulatory,Central Services,http://opendatacommunities.org/def/concept/finance/sercop/objective/102,Carrington West,,27/05/2020,107323,1596,0,PLANNING CONTRACTORS,159999,Consultancy Not Elsewhere Classified
South Lakeland District Council,http://opendatacommunities.org/id/district-council/south-lakeland,31/05/2020,Support Services,Cultural Environmental Regulatory & Planning Services,http://opendatacommunities.org/def/concept/finance/sercop/objective/104,Mickledore Ltd,6651481,18/05/2020,106452,1600,0,Cross-a-Moor Junction Improvements -,151000,Consultancy Business
South Lakeland District Council,http://opendatacommunities.org/id/district-council/south-lakeland,31/05/2020,Case Management People,Housing Services,http://opendatacommunities.org/def/concept/finance/sercop/objective/108,D Clark Properties,,06/05/2020,105959,1650,0,"Accommodation 13 Fife Street, Barrow",250000,Housing
South Lakeland District Council,http://opendatacommunities.org/id/district-council/south-lakeland,31/05/2020,Case Management People,Housing Services,http://opendatacommunities.org/def/concept/finance/sercop/objective/108,D Clark Properties,,27/05/2020,107171,1650,0,"Accommodation The Lodge, Barrow",250000,Housing
South Lakeland District Council,http://opendatacommunities.org/id/district-council/south-lakeland,31/05/2020,Environment and Housing,Housing Services,http://opendatacommunities.org/def/concept/finance/sercop/objective/108,James Andrews Recruitment Solutions,6834852,06/05/2020,105146,1652.28,0,Agency worker for Community-led Housing,261400,HR Temporary & Agency Staff
South Lakeland District Council,http://opendatacommunities.org/id/district-council/south-lakeland,31/05/2020,Environment and Housing,Housing Services,http://opendatacommunities.org/def/concept/finance/sercop/objective/108,James Andrews Recruitment Solutions,6834852,11/05/2020,106000,1652.28,0,Agency worker for Community-led Housing,261400,HR Temporary & Agency Staff
South Lakeland District Council,http://opendatacommunities.org/id/district-council/south-lakeland,31/05/2020,Development Management,Central Services,http://opendatacommunities.org/def/concept/finance/sercop/objective/102,The Oyster Partnership,5020374,11/05/2020,105158,1665,0,Supply of Contract workers for Planning,261300,HR Recruitment & Assessment
South Lakeland District Council,http://opendatacommunities.org/id/district-council/south-lakeland,31/05/2020,Case Management People,Central Services,http://opendatacommunities.org/def/concept/finance/sercop/objective/102,MORGAN HUNT UK LIMITED,4349535,20/05/2020,106865,1679.65,0,Payment for ,269999,HR Not Elsewhere Classified
South Lakeland District Council,http://opendatacommunities.org/id/district-council/south-lakeland,31/05/2020,Development Management,Central Services,http://opendatacommunities.org/def/concept/finance/sercop/objective/102,The Oyster Partnership,5020374,13/05/2020,103989,1707.3,0,Supply of Contract workers for Planning,261300,HR Recruitment & Assessment
South Lakeland District Council,http://opendatacommunities.org/id/district-council/south-lakeland,31/05/2020,Case Management Regulatory,Central Services,http://opendatacommunities.org/def/concept/finance/sercop/objective/102,Carrington West,,06/05/2020,105996,1715.7,0,PLANNING CONTRACTORS,159999,Consultancy Not Elsewhere Classified
South Lakeland District Council,http://opendatacommunities.org/id/district-council/south-lakeland,31/05/2020,Business Support Community Services,Cultural Environmental Regulatory & Planning Services,http://opendatacommunities.org/def/concept/finance/sercop/objective/104,Masterstaff Limited,2777593,13/05/2020,105891,1719.66,0,Agency staff 2020/21,261300,HR Recruitment & Assessment
South Lakeland District Council,http://opendatacommunities.org/id/district-council/south-lakeland,31/05/2020,Leisure and Wellbeing,Cultural Environmental Regulatory & Planning Services,http://opendatacommunities.org/def/concept/finance/sercop/objective/104,CONTINENTAL LANDSCAPES LTD,2108452,13/05/2020,103997,1722.27,0,Extra works for arboriculture for April,391310,Construction Open Spaces Construction
South Lakeland District Council,http://opendatacommunities.org/id/district-council/south-lakeland,31/05/2020,Case Management Account Mgmt,Cultural Environmental Regulatory & Planning Services,http://opendatacommunities.org/def/concept/finance/sercop/objective/104,CONTINENTAL LANDSCAPES LTD,2108452,13/05/2020,105957,1741.83,0,Parks Routine Maintenance from April,391310,Construction Open Spaces Construction
South Lakeland District Council,http://opendatacommunities.org/id/district-council/south-lakeland,31/05/2020,Printing Section,Central Services,http://opendatacommunities.org/def/concept/finance/sercop/objective/102,Konica Minolta Bus Solutions (UK) Ltd,,27/05/2020,107245,1765.55,0,Office Clicks per quarter,192000,Facilities Reprographics
South Lakeland District Council,http://opendatacommunities.org/id/district-council/south-lakeland,31/05/2020,Westmorland Centre Parking Office,Highways & Transport Services,http://opendatacommunities.org/def/concept/finance/sercop/objective/107,CAPITA BUSINESS SERVICES LTD (NCR),,01/05/2020,106451,1773.94,0,Credit card commission April 2019 to,261500,HR Training & Conferences
South Lakeland District Council,http://opendatacommunities.org/id/district-council/south-lakeland,31/05/2020,Technical Team,Central Services,http://opendatacommunities.org/def/concept/finance/sercop/objective/102,Macdonald & Company Freelance Ltd,3882135,27/05/2020,107099,1777.5,0,PLANNING CONTRACT STAFF,261400,HR Temporary & Agency Staff
South Lakeland District Council,http://opendatacommunities.org/id/district-council/south-lakeland,31/05/2020,Case Management Account Mgmt,Other Items,,Albert Harrison,361308,06/05/2020,105886,1794.24,0,For quote LD270420 as provided on April,161000,Domestic Goods Commercial
South Lakeland District Council,http://opendatacommunities.org/id/district-council/south-lakeland,31/05/2020,Case Management Regulatory,Central Services,http://opendatacommunities.org/def/concept/finance/sercop/objective/102,Carrington West,,27/05/2020,107007,1795.5,0,PLANNING CONTRACTORS,159999,Consultancy Not Elsewhere Classified
South Lakeland District Council,http://opendatacommunities.org/id/district-council/south-lakeland,31/05/2020,Case Management Regulatory,Central Services,http://opendatacommunities.org/def/concept/finance/sercop/objective/102,Carrington West,,27/05/2020,107098,1795.5,0,PLANNING CONTRACTORS,159999,Consultancy Not Elsewhere Classified
South Lakeland District Council,http://opendatacommunities.org/id/district-council/south-lakeland,31/05/2020,Case Management Regulatory,Central Services,http://opendatacommunities.org/def/concept/finance/sercop/objective/102,Carrington West,,27/05/2020,107319,1795.5,0,PLANNING CONTRACTORS,159999,Consultancy Not Elsewhere Classified
South Lakeland District Council,http://opendatacommunities.org/id/district-council/south-lakeland,31/05/2020,Finance,Highways & Transport Services,http://opendatacommunities.org/def/concept/finance/sercop/objective/107,E H BOOTH & CO LTD,,20/05/2020,107068,1797.28,0,Qtr 4 Expenses,111200,Catering Food & Beverages
South Lakeland District Council,http://opendatacommunities.org/id/district-council/south-lakeland,31/05/2020,Case Management Account Mgmt,SLDC as Agent,,ROYAL MAIL GROUP PLC,,06/05/2020,105988,1816.82,0,2020-21 Postal Charges a/c 0198123013,301200,Mail Services� Postage
South Lakeland District Council,http://opendatacommunities.org/id/district-council/south-lakeland,31/05/2020,Business Support Community Services,Central Services,http://opendatacommunities.org/def/concept/finance/sercop/objective/102,CUMBRIA COUNTY COUNCIL,,27/05/2020,107288,1827,0,LAND CHARGE SEARCH ENQUIRIES HIGHWAYS,908000,Public Bodies Council support services
South Lakeland District Council,http://opendatacommunities.org/id/district-council/south-lakeland,31/05/2020,Lake Wardens,Cultural Environmental Regulatory & Planning Services,http://opendatacommunities.org/def/concept/finance/sercop/objective/104,Dan Hill Plast A/S,,01/05/2020,93810,1835.75,0,10 x Cartons (40) B60 Dark Red Buoys,907999,Marine Not Elsewhere Classified
South Lakeland District Council,http://opendatacommunities.org/id/district-council/south-lakeland,31/05/2020,Finance,Highways & Transport Services,http://opendatacommunities.org/def/concept/finance/sercop/objective/107,E H BOOTH & CO LTD,,20/05/2020,107068,1854.54,0,Qtr 4 Expenses,111200,Catering Food & Beverages
South Lakeland District Council,http://opendatacommunities.org/id/district-council/south-lakeland,31/05/2020,Case Management People,Cultural Environmental Regulatory & Planning Services,http://opendatacommunities.org/def/concept/finance/sercop/objective/104,CONTINENTAL LANDSCAPES LTD,2108452,11/05/2020,105154,1872.27,0,"Gravedigging overtime on 10th, 11th and",391310,Construction Open Spaces Construction
South Lakeland District Council,http://opendatacommunities.org/id/district-council/south-lakeland,31/05/2020,Case Management Account Mgmt,Central Services,http://opendatacommunities.org/def/concept/finance/sercop/objective/102,CFH Docmail Ltd,1716891,13/05/2020,106417,1903.09,0,NNDR Pack Price Printing Insert Mailing,300000,Mail Services
South Lakeland District Council,http://opendatacommunities.org/id/district-council/south-lakeland,31/05/2020,Development Management,Central Services,http://opendatacommunities.org/def/concept/finance/sercop/objective/102,The Oyster Partnership,5020374,11/05/2020,105998,1976.4,0,Supply of Contract workers for Planning,261300,HR Recruitment & Assessment
South Lakeland District Council,http://opendatacommunities.org/id/district-council/south-lakeland,31/05/2020,Case Management Account Mgmt,SLDC as Agent,,ROYAL MAIL GROUP PLC,,27/05/2020,107094,1978.89,0,2020-21 Postal Charges a/c 0198123013,301200,Mail Services� Postage
South Lakeland District Council,http://opendatacommunities.org/id/district-council/south-lakeland,31/05/2020,Case Management Account Mgmt,Central Services,http://opendatacommunities.org/def/concept/finance/sercop/objective/102,Konica Minolta Bus Solutions (UK) Ltd,,27/05/2020,107246,1979.73,0,Print room lease,192000,Facilities Reprographics
South Lakeland District Council,http://opendatacommunities.org/id/district-council/south-lakeland,31/05/2020,Technical Team,Central Services,http://opendatacommunities.org/def/concept/finance/sercop/objective/102,Macdonald & Company Freelance Ltd,3882135,04/05/2020,105175,1980,0,PLANNING CONTRACT STAFF,261400,HR Temporary & Agency Staff
South Lakeland District Council,http://opendatacommunities.org/id/district-council/south-lakeland,31/05/2020,Case Management Account Mgmt,Cultural Environmental Regulatory & Planning Services,http://opendatacommunities.org/def/concept/finance/sercop/objective/104,CONTINENTAL LANDSCAPES LTD,2108452,13/05/2020,105957,2009.8,0,Parks Routine Maintenance from April,391310,Construction Open Spaces Construction
South Lakeland District Council,http://opendatacommunities.org/id/district-council/south-lakeland,31/05/2020,Case Management Account Mgmt,Central Services,http://opendatacommunities.org/def/concept/finance/sercop/objective/102,ADECCO UK LIMITED,593232,01/06/2020,107615,2034,0,E B Permanent Employment Charges,261400,HR Temporary & Agency Staff
South Lakeland District Council,http://opendatacommunities.org/id/district-council/south-lakeland,31/05/2020,Business Support Community Services,Cultural Environmental Regulatory & Planning Services,http://opendatacommunities.org/def/concept/finance/sercop/objective/104,Masterstaff Limited,2777593,13/05/2020,106388,2043.66,0,Agency staff 2020/21,261300,HR Recruitment & Assessment
South Lakeland District Council,http://opendatacommunities.org/id/district-council/south-lakeland,31/05/2020,Case Management People,Central Services,http://opendatacommunities.org/def/concept/finance/sercop/objective/102,MORGAN HUNT UK LIMITED,4349535,13/05/2020,105995,2135.56,0,Payment for ,269999,HR Not Elsewhere Classified
South Lakeland District Council,http://opendatacommunities.org/id/district-council/south-lakeland,31/05/2020,Case Management People,Central Services,http://opendatacommunities.org/def/concept/finance/sercop/objective/102,MORGAN HUNT UK LIMITED,4349535,06/05/2020,105152,2159.55,0,Payment for ,269999,HR Not Elsewhere Classified
South Lakeland District Council,http://opendatacommunities.org/id/district-council/south-lakeland,31/05/2020,Technical Team,Central Services,http://opendatacommunities.org/def/concept/finance/sercop/objective/102,Macdonald & Company Freelance Ltd,3882135,27/05/2020,107318,2164.5,0,PLANNING CONTRACT STAFF,261400,HR Temporary & Agency Staff
South Lakeland District Council,http://opendatacommunities.org/id/district-council/south-lakeland,31/05/2020,Case Management People,Central Services,http://opendatacommunities.org/def/concept/finance/sercop/objective/102,MORGAN HUNT UK LIMITED,4349535,27/05/2020,107268,2183.55,0,Payment for ,269999,HR Not Elsewhere Classified
South Lakeland District Council,http://opendatacommunities.org/id/district-council/south-lakeland,31/05/2020,Support Services,Central Services,http://opendatacommunities.org/def/concept/finance/sercop/objective/102,Print.UK.Com,,13/05/2020,97544,2198.13,0,Annulment cost for the cancelled,191600,Facilities Printing
South Lakeland District Council,http://opendatacommunities.org/id/district-council/south-lakeland,31/05/2020,Support Services,Central Services,http://opendatacommunities.org/def/concept/finance/sercop/objective/102,Print.UK.Com,,13/05/2020,97544,2198.13,0,Annulment cost for the cancelled,191600,Facilities Printing
South Lakeland District Council,http://opendatacommunities.org/id/district-council/south-lakeland,31/05/2020,Case Management People,Central Services,http://opendatacommunities.org/def/concept/finance/sercop/objective/102,MORGAN HUNT UK LIMITED,4349535,01/06/2020,107599,2207.54,0,Payment for ,269999,HR Not Elsewhere Classified
South Lakeland District Council,http://opendatacommunities.org/id/district-council/south-lakeland,31/05/2020,Case Management Account Mgmt,Cultural Environmental Regulatory & Planning Services,http://opendatacommunities.org/def/concept/finance/sercop/objective/104,CONTINENTAL LANDSCAPES LTD,2108452,13/05/2020,105915,2227.37,0,For disposal of waste to Kendal Fell,391310,Construction Open Spaces Construction
South Lakeland District Council,http://opendatacommunities.org/id/district-council/south-lakeland,31/05/2020,Development Management,Central Services,http://opendatacommunities.org/def/concept/finance/sercop/objective/102,The Oyster Partnership,5020374,13/05/2020,103988,2286.9,0,Supply of Contract workers for Planning,261300,HR Recruitment & Assessment
South Lakeland District Council,http://opendatacommunities.org/id/district-council/south-lakeland,31/05/2020,Technical Team,Central Services,http://opendatacommunities.org/def/concept/finance/sercop/objective/102,Macdonald & Company Freelance Ltd,3882135,13/05/2020,106374,2317.5,0,PLANNING CONTRACT STAFF,261400,HR Temporary & Agency Staff
South Lakeland District Council,http://opendatacommunities.org/id/district-council/south-lakeland,31/05/2020,Development Implementation,Culture and Related Serv,http://opendatacommunities.org/def/concept/finance/sercop/objective/104,LAMBERT SMITH HAMPTON GROUP,2521225,18/05/2020,106934,2376,0,Grange Promenade - Structural Repairs,191700,Facilities Property Management
South Lakeland District Council,http://opendatacommunities.org/id/district-council/south-lakeland,31/05/2020,Support Services,Other Items,,"Marquees & Teepees, Killington Ltd",,13/05/2020,105879,2425,0,Kendal Recovery Centre at Kendal,192212,Facilities Security Equipment
South Lakeland District Council,http://opendatacommunities.org/id/district-council/south-lakeland,31/05/2020,Support Services,Other Items,,"Marquees & Teepees, Killington Ltd",,27/05/2020,107272,2425,0,Kendal Recovery Centre at Kendal,192212,Facilities Security Equipment
South Lakeland District Council,http://opendatacommunities.org/id/district-council/south-lakeland,31/05/2020,Development Management,Central Services,http://opendatacommunities.org/def/concept/finance/sercop/objective/102,The Oyster Partnership,5020374,24/04/2020,102537,2450,0,Supply of Contract workers for Planning,261300,HR Recruitment & Assessment
South Lakeland District Council,http://opendatacommunities.org/id/district-council/south-lakeland,31/05/2020,Leisure and Wellbeing,Cultural Environmental Regulatory & Planning Services,http://opendatacommunities.org/def/concept/finance/sercop/objective/104,CONTINENTAL LANDSCAPES LTD,2108452,13/05/2020,103997,2476.81,0,Extra works for arboriculture for April,391310,Construction Open Spaces Construction
South Lakeland District Council,http://opendatacommunities.org/id/district-council/south-lakeland,31/05/2020,Support Services,Cultural Environmental Regulatory & Planning Services,http://opendatacommunities.org/def/concept/finance/sercop/objective/104,PS BUSINESS MATTERS,8147185,13/05/2020,106418,2500,0,Kendal Futures Programme Support,151900,Consultancy Management
South Lakeland District Council,http://opendatacommunities.org/id/district-council/south-lakeland,31/05/2020,Business Support Community Services,Cultural Environmental Regulatory & Planning Services,http://opendatacommunities.org/def/concept/finance/sercop/objective/104,Harry Park Tyres Ltd,8131208,06/05/2020,105162,2510,0,Tyres,381500,Vehicle Mgt Parts
South Lakeland District Council,http://opendatacommunities.org/id/district-council/south-lakeland,31/05/2020,Business Support Community Services,Cultural Environmental Regulatory & Planning Services,http://opendatacommunities.org/def/concept/finance/sercop/objective/104,PROBRUSH T/A NORTHERN MUNICIPAL SPARES L,,27/05/2020,107264,2550.9,0,Brushes 2019/20,381600,Vehicle Mgt Leasing
South Lakeland District Council,http://opendatacommunities.org/id/district-council/south-lakeland,31/05/2020,Development Management,Central Services,http://opendatacommunities.org/def/concept/finance/sercop/objective/102,The Oyster Partnership,5020374,18/05/2020,106859,2601.9,0,Supply of Contract workers for Planning,261300,HR Recruitment & Assessment
South Lakeland District Council,http://opendatacommunities.org/id/district-council/south-lakeland,31/05/2020,Business Support Community Services,Cultural Environmental Regulatory & Planning Services,http://opendatacommunities.org/def/concept/finance/sercop/objective/104,Masterstaff Limited,2777593,18/05/2020,106965,2640.24,0,Agency staff 2020/21,261300,HR Recruitment & Assessment
South Lakeland District Council,http://opendatacommunities.org/id/district-council/south-lakeland,31/05/2020,Support Services,Other Items,,I T SHAW LTD,2971577,27/05/2020,105989,2659.9,0,Kendal Recovery Centre at Kendal,152200,Consultancy Technical & Feasibility
South Lakeland District Council,http://opendatacommunities.org/id/district-council/south-lakeland,31/05/2020,Business Support Community Services,Cultural Environmental Regulatory & Planning Services,http://opendatacommunities.org/def/concept/finance/sercop/objective/104,ENVIRONMENT AGENCY,,27/05/2020,107252,2731.25,0,Waste Transfer Licences,202100,Financial Services Subscriptions
South Lakeland District Council,http://opendatacommunities.org/id/district-council/south-lakeland,31/05/2020,Business Support Community Services,Cultural Environmental Regulatory & Planning Services,http://opendatacommunities.org/def/concept/finance/sercop/objective/104,ENVIRONMENT AGENCY,,27/05/2020,107253,2731.25,0,Waste Transfer Licences,202100,Financial Services Subscriptions
South Lakeland District Council,http://opendatacommunities.org/id/district-council/south-lakeland,31/05/2020,Business Support Community Services,Cultural Environmental Regulatory & Planning Services,http://opendatacommunities.org/def/concept/finance/sercop/objective/104,PENNINGTONS (KENDAL) LIMITED,434649,27/05/2020,107254,2750,0,Annual Charge for use of Link Road at,182013,Environment Waste Mgt Waste Collection
South Lakeland District Council,http://opendatacommunities.org/id/district-council/south-lakeland,31/05/2020,Customer Services,Cultural Environmental Regulatory & Planning Services,http://opendatacommunities.org/def/concept/finance/sercop/objective/104,MILNTHORPE KENNELS & CATTERY,8932302,06/05/2020,105952,2791.67,0,Stray dog contract 2020/21 collection,181500,Environment Animal Services
South Lakeland District Council,http://opendatacommunities.org/id/district-council/south-lakeland,31/05/2020,Development Management,Central Services,http://opendatacommunities.org/def/concept/finance/sercop/objective/102,The Oyster Partnership,5020374,11/05/2020,105159,2800,0,Supply of Contract workers for Planning,261300,HR Recruitment & Assessment
South Lakeland District Council,http://opendatacommunities.org/id/district-council/south-lakeland,31/05/2020,Development Management,Central Services,http://opendatacommunities.org/def/concept/finance/sercop/objective/102,The Oyster Partnership,5020374,11/05/2020,105997,2823.1,0,Supply of Contract workers for Planning,261300,HR Recruitment & Assessment
South Lakeland District Council,http://opendatacommunities.org/id/district-council/south-lakeland,31/05/2020,Development Management,Central Services,http://opendatacommunities.org/def/concept/finance/sercop/objective/102,The Oyster Partnership,5020374,27/05/2020,107275,2922.5,0,Supply of Contract workers for Planning,261300,HR Recruitment & Assessment
South Lakeland District Council,http://opendatacommunities.org/id/district-council/south-lakeland,31/05/2020,ICT Group,Central Services,http://opendatacommunities.org/def/concept/finance/sercop/objective/102,CABLE & WIRELESS UK (VODAFONE),,13/05/2020,96204,2936.85,0,New GSi,271700,ICT Telecommunications Fixed
South Lakeland District Council,http://opendatacommunities.org/id/district-council/south-lakeland,31/05/2020,Support Services,Central Services,http://opendatacommunities.org/def/concept/finance/sercop/objective/102,NEWSQUEST MEDIA GROUP LTD,3102566,20/05/2020,106857,3000,0,Green Mission Advertsing,191000,Facilities Advertising
South Lakeland District Council,http://opendatacommunities.org/id/district-council/south-lakeland,31/05/2020,Support Services,Other Items,,GRANTS- MISCELLANEOUS,,13/05/2020,106423,3041,0,Additional Support to Voluntary Sector,201700,Financial Services Grants
South Lakeland District Council,http://opendatacommunities.org/id/district-council/south-lakeland,31/05/2020,Business Support Community Services,Cultural Environmental Regulatory & Planning Services,http://opendatacommunities.org/def/concept/finance/sercop/objective/104,BRIAN ARMISTEAD LTD T/A SINKFALL RECYCLI,4133280,27/05/2020,107255,3180.71,0,Tipping charges - green waste,391110,Construction Buildings Construction
South Lakeland District Council,http://opendatacommunities.org/id/district-council/south-lakeland,31/05/2020,Support Services,Central Services,http://opendatacommunities.org/def/concept/finance/sercop/objective/102,7 Harrington Street Chambers,,20/05/2020,107032,3258.34,0,"Prosecution - Holker, Newmac and Newbold",281300,Legal Services Legal Opinion
South Lakeland District Council,http://opendatacommunities.org/id/district-council/south-lakeland,31/05/2020,Financial Services,Central Services,http://opendatacommunities.org/def/concept/finance/sercop/objective/102,TIAA Ltd,4546319,11/05/2020,106236,3280,0,19/20 Internal Audit Service Quarterly.,201100,Financial Services Audit
South Lakeland District Council,http://opendatacommunities.org/id/district-council/south-lakeland,31/05/2020,Business Support Community Services,Central Services,http://opendatacommunities.org/def/concept/finance/sercop/objective/102,CUMBRIA COUNTY COUNCIL,,27/05/2020,107289,3433,0,LAND CHARGE SEARCH ENQUIRIES HIGHWAYS,908000,Public Bodies Council support services
South Lakeland District Council,http://opendatacommunities.org/id/district-council/south-lakeland,31/05/2020,Business Support Community Services,Cultural Environmental Regulatory & Planning Services,http://opendatacommunities.org/def/concept/finance/sercop/objective/104,Initial,1298292,13/05/2020,106402,3595.86,0,Clinical waste collections - 2020/21,131011,Cleaning & Janitorial Cleaning Materials
South Lakeland District Council,http://opendatacommunities.org/id/district-council/south-lakeland,31/05/2020,Support Services,Other Items,,Athena PTS,7708468,13/05/2020,105884,3685,0,Kendal Recovery Centre at Kendal,192212,Facilities Security Equipment
South Lakeland District Council,http://opendatacommunities.org/id/district-council/south-lakeland,31/05/2020,Case Management Account Mgmt,Cultural Environmental Regulatory & Planning Services,http://opendatacommunities.org/def/concept/finance/sercop/objective/104,CONTINENTAL LANDSCAPES LTD,2108452,13/05/2020,105956,4050.03,0,For gravedigging from April 2020 -,391310,Construction Open Spaces Construction
South Lakeland District Council,http://opendatacommunities.org/id/district-council/south-lakeland,31/05/2020,Business Support Community Services,Cultural Environmental Regulatory & Planning Services,http://opendatacommunities.org/def/concept/finance/sercop/objective/104,UNITED UTILITIES WATER PLC,2366678,11/05/2020,104714,4104.92,0,Private Water Analysis,371300,Utilities Water
South Lakeland District Council,http://opendatacommunities.org/id/district-council/south-lakeland,31/05/2020,Business Support Community Services,Cultural Environmental Regulatory & Planning Services,http://opendatacommunities.org/def/concept/finance/sercop/objective/104,ALLSTAR BUSINESS SOLUTIONS LTD (NCR),2631112,01/05/2020,106456,4169.64,0,Fuel to 30/04,381600,Vehicle Mgt Leasing
South Lakeland District Council,http://opendatacommunities.org/id/district-council/south-lakeland,31/05/2020,Case Management Account Mgmt,Central Services,http://opendatacommunities.org/def/concept/finance/sercop/objective/102,CAPITA BUSINESS SERVICES LTD,2299747,01/06/2020,107097,4202.16,0,Covid 19 DWP Funding for LHA & EDEN,261500,HR Training & Conferences
South Lakeland District Council,http://opendatacommunities.org/id/district-council/south-lakeland,31/05/2020,Support Services,Other Items,,Russell Armer,680872,13/05/2020,105880,4340,0,Work at Kendal NHS Leisure Centre,100000,Building Construction materials
South Lakeland District Council,http://opendatacommunities.org/id/district-council/south-lakeland,31/05/2020,Business Support Community Services,Cultural Environmental Regulatory & Planning Services,http://opendatacommunities.org/def/concept/finance/sercop/objective/104,ALLSTAR BUSINESS SOLUTIONS LTD (NCR),2631112,01/06/2020,107248,4387.68,0,Fuel to 15/05,381600,Vehicle Mgt Leasing
South Lakeland District Council,http://opendatacommunities.org/id/district-council/south-lakeland,31/05/2020,Business Support Community Services,Central Services,http://opendatacommunities.org/def/concept/finance/sercop/objective/102,CRAEMER UK LTD,2574815,13/05/2020,105887,4438.4,0,Green bins (2019/20),182012,Environment Waste Management Recycling
South Lakeland District Council,http://opendatacommunities.org/id/district-council/south-lakeland,31/05/2020,Support Services,Central Services,http://opendatacommunities.org/def/concept/finance/sercop/objective/102,Print.UK.Com,,13/05/2020,97545,4916.46,0,"Poll cards, PV envelopes and PV",191600,Facilities Printing
South Lakeland District Council,http://opendatacommunities.org/id/district-council/south-lakeland,31/05/2020,Support Services,Central Services,http://opendatacommunities.org/def/concept/finance/sercop/objective/102,Print.UK.Com,,13/05/2020,97545,4916.46,0,"Poll cards, PV envelopes and PV",191600,Facilities Printing
South Lakeland District Council,http://opendatacommunities.org/id/district-council/south-lakeland,31/05/2020,Support Services,Central Services,http://opendatacommunities.org/def/concept/finance/sercop/objective/102,7 Harrington Street Chambers,,27/05/2020,107310,4958.25,0,FURTHER PREP = 19 HOURS 50 MINUTES,281300,Legal Services Legal Opinion
South Lakeland District Council,http://opendatacommunities.org/id/district-council/south-lakeland,31/05/2020,Support Services,Cultural Environmental Regulatory & Planning Services,http://opendatacommunities.org/def/concept/finance/sercop/objective/104,Cumbria Local Enterprise Partnership,11730398,04/05/2020,105171,5000,0,Contribution to Cumbria LEP 2020/21,151000,Consultancy Business
South Lakeland District Council,http://opendatacommunities.org/id/district-council/south-lakeland,31/05/2020,Support Services,Central Services,http://opendatacommunities.org/def/concept/finance/sercop/objective/102,KENDAL TOWN COUNCIL,,18/05/2020,106952,5000,0,"5,000 contribution towards the Kendal",908000,Public Bodies Council support services
South Lakeland District Council,http://opendatacommunities.org/id/district-council/south-lakeland,31/05/2020,Support Services,Other Items,,Greenwich Leisure Ltd,,18/05/2020,106444,5077.88,0,Kendal Recovery Centre - Set up &,291400,Arts & Leisure Services Sport & Fitness
South Lakeland District Council,http://opendatacommunities.org/id/district-council/south-lakeland,31/05/2020,Support Services,Other Items,,David G Bushell Electrical Contractors L,4411165,18/05/2020,106440,5272.4,0,Kendal Recovery Centre at Kendal,101100,Building Electrical
South Lakeland District Council,http://opendatacommunities.org/id/district-council/south-lakeland,31/05/2020,Business Support Community Services,Cultural Environmental Regulatory & Planning Services,http://opendatacommunities.org/def/concept/finance/sercop/objective/104,KIRKBY LONSDALE TOWN COUNCIL,,11/05/2020,106237,5500,0,"24 Main Street, Kirkby Lonsdale - grant",908000,Public Bodies Council support services
South Lakeland District Council,http://opendatacommunities.org/id/district-council/south-lakeland,31/05/2020,Support Services,Central Services,http://opendatacommunities.org/def/concept/finance/sercop/objective/102,BEVAN BRITTAN,OC309219,27/05/2020,107009,5965.8,0,Advice on Markets-Professional charges,280000,Legal Services
South Lakeland District Council,http://opendatacommunities.org/id/district-council/south-lakeland,31/05/2020,Support Services,SLDC as Agent,,GRANTS- MISCELLANEOUS,,06/05/2020,105894,6451.2,0,CSP Grant for Drop Zone,201700,Financial Services Grants
South Lakeland District Council,http://opendatacommunities.org/id/district-council/south-lakeland,31/05/2020,Case Management People,SLDC as Agent,,SOUTH LAKES HOUSING,IP031419,27/05/2020,107073,6810.48,0,CBL Co-Ordinator Costs,191700,Facilities Property Management
South Lakeland District Council,http://opendatacommunities.org/id/district-council/south-lakeland,31/05/2020,Support Services,Planning and Development,,BURTON-IN-KENDAL PARISH COUNCIL,,01/06/2020,107636,7946.86,0,CIL - Neighbourhood Funding Portion,908000,Public Bodies Council support services
South Lakeland District Council,http://opendatacommunities.org/id/district-council/south-lakeland,31/05/2020,Case Management Account Mgmt,Central Services,http://opendatacommunities.org/def/concept/finance/sercop/objective/102,CAPITA BUSINESS SERVICES LTD,2299747,18/05/2020,106432,8600,0,'Covid 19 Expanded Retail Discount,261500,HR Training & Conferences
South Lakeland District Council,http://opendatacommunities.org/id/district-council/south-lakeland,31/05/2020,Case Management Account Mgmt,Non-Service Payments,,Kendal BID Ltd,8986243,06/05/2020,105987,9336.98,0,A payment of outstanding BID levy,201700,Financial Services Grants
South Lakeland District Council,http://opendatacommunities.org/id/district-council/south-lakeland,31/05/2020,Case Management Account Mgmt,Culture and Related Serv,http://opendatacommunities.org/def/concept/finance/sercop/objective/104,Playscape Solutions Ltd,,27/05/2020,107170,9540,0,Ground work for the kick about area at,331100,Sports & Play Equipment- Playground Main
South Lakeland District Council,http://opendatacommunities.org/id/district-council/south-lakeland,31/05/2020,ICT Group,Central Services,http://opendatacommunities.org/def/concept/finance/sercop/objective/102,eBuyer.com,,06/05/2020,105877,10475.24,0,HP 250 G7 15.6&quot; Full HD Intel Core,271200,ICT Hardware
South Lakeland District Council,http://opendatacommunities.org/id/district-council/south-lakeland,31/05/2020,Business Support Community Services,Central Services,http://opendatacommunities.org/def/concept/finance/sercop/objective/102,STRAIGHT MANUFACTURING Ltd,1618165,11/05/2020,103172,10549.44,0,Recycling box & lid deliveries in,182011,Environment Waste Management Consumables
South Lakeland District Council,http://opendatacommunities.org/id/district-council/south-lakeland,31/05/2020,Case Management Account Mgmt,Cultural Environmental Regulatory & Planning Services,http://opendatacommunities.org/def/concept/finance/sercop/objective/104,CONTINENTAL LANDSCAPES LTD,2108452,13/05/2020,105957,10718.95,0,Parks Routine Maintenance from April,391310,Construction Open Spaces Construction
South Lakeland District Council,http://opendatacommunities.org/id/district-council/south-lakeland,31/05/2020,Case Management Account Mgmt,Central Services,http://opendatacommunities.org/def/concept/finance/sercop/objective/102,CAPITA BUSINESS SERVICES LTD,2299747,27/05/2020,107324,10968.62,0,DWP LA Data Sharing Programme: IT Costs,261500,HR Training & Conferences
South Lakeland District Council,http://opendatacommunities.org/id/district-council/south-lakeland,31/05/2020,Business Support Community Services,Cultural Environmental Regulatory & Planning Services,http://opendatacommunities.org/def/concept/finance/sercop/objective/104,CUMBRIA WASTE RECYCLING LTD,3162439,06/05/2020,105163,11602.75,0,Empty recycling banks in 2019/20,182012,Environment Waste Management Recycling
South Lakeland District Council,http://opendatacommunities.org/id/district-council/south-lakeland,31/05/2020,Business Support Community Services,Cultural Environmental Regulatory & Planning Services,http://opendatacommunities.org/def/concept/finance/sercop/objective/104,ALLSTAR BUSINESS SOLUTIONS LTD (NCR),2631112,01/05/2020,106456,11798.45,0,Fuel to 30/04,381600,Vehicle Mgt Leasing
South Lakeland District Council,http://opendatacommunities.org/id/district-council/south-lakeland,31/05/2020,Business Support Community Services,Central Services,http://opendatacommunities.org/def/concept/finance/sercop/objective/102,ONE51 ES Plastics (UK) Ltd t/aMGB Plasti,,27/05/2020,107256,12168,0,"240L Grey Plastic Wheeled Bin, Fully",231700,Highways Street Furniture & Ironworks
South Lakeland District Council,http://opendatacommunities.org/id/district-council/south-lakeland,31/05/2020,Business Support Community Services,Cultural Environmental Regulatory & Planning Services,http://opendatacommunities.org/def/concept/finance/sercop/objective/104,ALLSTAR BUSINESS SOLUTIONS LTD (NCR),2631112,01/06/2020,107248,13829.29,0,Fuel to 15/05,381600,Vehicle Mgt Leasing
South Lakeland District Council,http://opendatacommunities.org/id/district-council/south-lakeland,31/05/2020,Financial Services,Central Services,http://opendatacommunities.org/def/concept/finance/sercop/objective/102,Capita IB Solutions Ltd,1593831,27/05/2020,107283,14577.11,0,Purchase Ordering annual maintenance 1,271600,ICT Software Customised & Bespoke
South Lakeland District Council,http://opendatacommunities.org/id/district-council/south-lakeland,31/05/2020,Case Management Account Mgmt,Culture and Related Serv,http://opendatacommunities.org/def/concept/finance/sercop/objective/104,STEELWAY FENSECURE LTD,3872973,18/05/2020,106866,14854.46,0,Supply and installation of bowtop,101200,Building Construction Materials- Fencing
South Lakeland District Council,http://opendatacommunities.org/id/district-council/south-lakeland,31/05/2020,Business Support Community Services,Cultural Environmental Regulatory & Planning Services,http://opendatacommunities.org/def/concept/finance/sercop/objective/104,CUMBRIA COUNTY COUNCIL,,27/05/2020,107251,15575.73,0,"Tipping & disposal charges, recyclables",908000,Public Bodies Council support services
South Lakeland District Council,http://opendatacommunities.org/id/district-council/south-lakeland,31/05/2020,Development Implementation,Central Services,http://opendatacommunities.org/def/concept/finance/sercop/objective/102,Bloom Procurement Services Ltd,,20/05/2020,105912,17642.25,0,RIBA Stage 4 design consultancy fees,151900,Consultancy Management
South Lakeland District Council,http://opendatacommunities.org/id/district-council/south-lakeland,31/05/2020,Case Management Account Mgmt,Central Services,http://opendatacommunities.org/def/concept/finance/sercop/objective/102,MERITEC LTD,3224622,01/06/2020,107295,23088,0,Remote Revenues Processing 962 hrs (37,391200,Construction Engineering
South Lakeland District Council,http://opendatacommunities.org/id/district-council/south-lakeland,31/05/2020,Case Management Account Mgmt,Central Services,http://opendatacommunities.org/def/concept/finance/sercop/objective/102,MERITEC LTD,3224622,01/06/2020,107294,25012,0,Remote Revenues Processing 962 hrs (37,391200,Construction Engineering
South Lakeland District Council,http://opendatacommunities.org/id/district-council/south-lakeland,31/05/2020,ICT Group,Central Services,http://opendatacommunities.org/def/concept/finance/sercop/objective/102,MLL Telecom Ltd,2657917,13/05/2020,104386,26681.99,0,South Lakeland House - MPLS connection,271700,ICT Telecommunications Fixed
South Lakeland District Council,http://opendatacommunities.org/id/district-council/south-lakeland,31/05/2020,Policy & Partnerships,Central Services,http://opendatacommunities.org/def/concept/finance/sercop/objective/102,Bloom Procurement Services Ltd,,20/05/2020,97507,31794.94,0,Service Redesign - Information Service,151900,Consultancy Management
South Lakeland District Council,http://opendatacommunities.org/id/district-council/south-lakeland,31/05/2020,ICT Group,Central Services,http://opendatacommunities.org/def/concept/finance/sercop/objective/102,IT BUS LTD,6477501,13/05/2020,103104,33851.5,0,Purchase of the following software,271200,ICT Hardware
South Lakeland District Council,http://opendatacommunities.org/id/district-council/south-lakeland,31/05/2020,Policy & Partnerships,Central Services,http://opendatacommunities.org/def/concept/finance/sercop/objective/102,Bloom Procurement Services Ltd,,13/05/2020,105946,40419.85,0,Transition Management  - Cost of,151900,Consultancy Management
South Lakeland District Council,http://opendatacommunities.org/id/district-council/south-lakeland,31/05/2020,Case Management Account Mgmt,Cultural Environmental Regulatory & Planning Services,http://opendatacommunities.org/def/concept/finance/sercop/objective/104,CONTINENTAL LANDSCAPES LTD,2108452,13/05/2020,105957,51048.97,0,Parks Routine Maintenance from April,391310,Construction Open Spaces Construction
South Lakeland District Council,http://opendatacommunities.org/id/district-council/south-lakeland,31/05/2020,Financial Services,Central Services,http://opendatacommunities.org/def/concept/finance/sercop/objective/102,CUMBRIA LGPS,,04/05/2020,104703,69122.24,0,19/20 Contribution re past pensions due,908999,Public Bodies Not Elsewhere Classified
South Lakeland District Council,http://opendatacommunities.org/id/district-council/south-lakeland,31/05/2020,Support Services,Central Services,http://opendatacommunities.org/def/concept/finance/sercop/objective/102,LAMBERT SMITH HAMPTON GROUP,2521225,13/05/2020,97500,81543.5,0,Property Service Contract (Apr - Sept),191700,Facilities Property Management
South Lakeland District Council,http://opendatacommunities.org/id/district-council/south-lakeland,31/05/2020,Support Services,Central Services,http://opendatacommunities.org/def/concept/finance/sercop/objective/102,LAMBERT SMITH HAMPTON GROUP,2521225,13/05/2020,106398,81543.5,0,Property Service Contract (Apr - Sept),191700,Facilities Property Management
